fUST/lending_fUST_20251231
["ID","MTS","AMOUNT","RATE_DAILY","PERIOD"]
[400142244,1767149452064,-530.31130776,0.00021917,2]
[400142245,1767149452073,-557.56149596,0.00021917,2]
[400142246,1767149452081,-500.0,0.00021917,2]
[400142247,1767149452091,-318.52617651,0.00021917,2]
[400142248,1767149452101,-563.12950415,0.00021917,2]
[400142249,1767149452110,-512.27195392,0.00021917,2]
[400142250,1767149452120,-432.64954775,0.00021917,2]
[400142251,1767149452129,-384.50178655,0.00021917,2]
[400142252,1767149452139,-520.49213089,0.00021917,2]
[400142253,1767149452148,-503.15657655,0.00021917,2]
[400142254,1767149452157,-536.31769473,0.00021917,2]
[400142255,1767149452166,-370.12781361,0.00021917,2]
[400142256,1767149452175,-496.54883015,0.00021917,2]
[400142257,1767149452185,-221.88922462,0.00021917,2]
[400142258,1767149452193,-489.15904473,0.00021917,2]
[400142259,1767149452203,-503.90976146,0.00021917,2]
[400142260,1767149452212,-488.05873299,0.00021917,2]
[400142261,1767149452222,-373.69503129,0.00021917,2]
[400142262,1767149452231,-270.1859473,0.00021917,2]
[400142263,1767149452240,-302.93599925,0.00021917,2]
[400142264,1767149452248,-489.63206501,0.00021917,2]
[400142265,1767149452258,-188.09773651,0.00021917,2]
[400142266,1767149452271,-384.56880518,0.00021917,2]
[400142267,1767149452280,-501.49047057,0.00021917,2]
[400142268,1767149452290,-475.47980033,0.00021917,2]
[400142269,1767149452302,-210.0897392,0.00021917,2]
[400142270,1767149452311,-1000.49997863,0.00021917,2]
[400142271,1767149452321,-482.58366291,0.00021917,2]
[400142272,1767149452331,-317.79050121,0.00021917,2]
[400142273,1767149452340,-570.30127706,0.00021917,2]
[400142274,1767149452349,-470.96870154,0.00021917,2]
[400142275,1767149452359,-543.79908277,0.00021917,2]
[400142276,1767149452369,-338.7068717,0.00021917,2]
[400142277,1767149452379,-422.54919443,0.00021917,2]
[400142278,1767149452389,-183.24711509,0.00021917,2]
[400142279,1767149452399,-626.93191148,0.00021917,2]
[400142280,1767149452410,-236.37317132,0.00021917,2]
[400142281,1767149452420,-496.84809073,0.00021917,2]
[400142282,1767149452429,-240.26102299,0.00021917,2]
[400142283,1767149452440,-394.89659577,0.00021917,2]
[400142284,1767149452449,-278.8646826,0.00021917,2]
[400142285,1767149452459,-437.54826434,0.00021917,2]
[400142286,1767149452469,-528.50741648,0.00021917,2]
[400142287,1767149452479,-438.63471452,0.00021917,2]
[400142288,1767149452488,-494.89632367,0.00021917,2]
[400142289,1767149452498,-467.48343818,0.00021917,2]
[400142290,1767149452507,-323.31192559,0.00021917,2]
[400142291,1767149452517,-647.56416011,0.00021917,2]
[400142292,1767149452527,-231.35721436,0.00021917,2]
[400142293,1767149452537,-229.06908316,0.00021917,2]
[400142294,1767149452546,-460.57142194,0.00021917,2]
[400142295,1767149452556,-262.39285768,0.00021917,2]
[400142296,1767149452566,-467.50665008,0.00021917,2]
[400142297,1767149452576,-289.65782428,0.00021917,2]
[400142298,1767149452586,-427.58295421,0.00021917,2]
[400142299,1767149452596,-184.45143146,0.00021917,2]
[400142300,1767149452606,-504.36803762,0.00021917,2]
[400142301,1767149452617,-211.38581713,0.00021917,2]
[400142302,1767149452627,-497.38962208,0.00021917,2]
[400142303,1767149452638,-180.00758644,0.00021917,2]
[400142304,1767149452647,-421.47478759,0.00021917,2]
[400142305,1767149452657,-296.46462733,0.00021917,2]
[400142306,1767149452667,-172.064977,0.00021917,2]
[400142307,1767149452677,-349.91056068,0.00021917,2]
[400142308,1767149452686,-513.03025516,0.00021917,2]
[400142309,1767149452696,-195.78340535,0.00021917,2]
[400142310,1767149452705,-481.2025443,0.00021917,2]
[400142311,1767149452715,-239.67150816,0.00021917,2]
[400142312,1767149452725,-298.77300732,0.00021917,2]
[400142313,1767149452735,-253.20522775,0.00021917,2]
[400142314,1767149452745,-542.93521185,0.00021917,2]
[400142315,1767149452755,-273.42014374,0.00021917,2]
[400142316,1767149452764,-501.76468192,0.00021917,2]
[400142317,1767149452775,-236.11807944,0.00021917,2]
[400142318,1767149452784,-255.82612828,0.00021917,2]
[400142319,1767149452794,-476.93139859,0.00021917,2]
[400142320,1767149452804,-305.02890404,0.00021917,2]
[400142321,1767149452814,-252.53180956,0.00021917,2]
[400142322,1767149452823,-254.68742717,0.00021917,2]
[400142323,1767149452833,-354.57002911,0.00021917,2]
[400142324,1767149452842,-237.17940245,0.00021917,2]
[400142325,1767149452852,-234.18239665,0.00021917,2]
[400142326,1767149452862,-242.56992235,0.00021917,2]
[400142327,1767149452873,-292.60725648,0.00021917,2]
[400142328,1767149452882,-514.42397018,0.00021917,2]
[400142329,1767149452892,-412.66222957,0.00021917,2]
[400142330,1767149452902,-267.77477029,0.00021917,2]
[400142331,1767149452911,-500.0,0.00021917,2]
[400142332,1767149452921,-386.6928305,0.00021917,2]
[400142333,1767149452930,-452.39889584,0.00021917,2]
[400142334,1767149452940,-451.94599016,0.00021917,2]
[400142335,1767149452950,-404.68008479,0.00021917,2]
[400142336,1767149452959,-500.0,0.00021917,2]
[400142337,1767149452968,-296.62905501,0.00021917,2]
[400142338,1767149452977,-452.62637168,0.00021917,2]
[400142339,1767149452987,-233.05068785,0.00021917,2]
[400142340,1767149452996,-645.18296178,0.00021917,2]
[400142341,1767149453006,-173.84828353,0.00021917,2]
[400142342,1767149453018,-463.13135716,0.00021917,2]
[400142343,1767149453027,-343.54748101,0.00021917,2]
[400142344,1767149453037,-202.66045977,0.00021917,2]
[400142345,1767149453047,-270.39811728,0.00021917,2]
[400142346,1767149453056,-317.01885779,0.00021917,2]
[400142347,1767149453066,-500.0,0.00021917,2]
[400142348,1767149453076,-279.80826818,0.00021917,2]
[400142349,1767149453085,-494.55176113,0.00021917,2]
[400142350,1767149453094,-505.80836714,0.00021917,2]
[400142351,1767149453103,-325.16876232,0.00021917,2]
[400142352,1767149453113,-500.0,0.00021917,2]
[400142353,1767149453123,-311.77339513,0.00021917,2]
[400142354,1767149453132,-500.0,0.00021917,2]
[400142355,1767149453142,-421.61468952,0.00021917,2]
[400142356,1767149453151,-591.77298457,0.00021917,2]
[400142357,1767149453160,-500.0,0.00021917,2]
[400142358,1767149453169,-214.79641048,0.00021917,2]
[400142359,1767149453179,-500.0,0.00021917,2]
[400142360,1767149453188,-563.33848718,0.00021917,2]
[400142361,1767149453197,-232.76411936,0.00021917,2]
[400142362,1767149453207,-370.813232,0.00021917,2]
[400142363,1767149453216,-500.0,0.00021917,2]
[400142364,1767149453227,-502.46290907,0.00021917,2]
[400142365,1767149453236,-500.0,0.00021917,2]
[400142366,1767149453246,-153.66087249,0.00021917,2]
[400142367,1767149453256,-158.14578293,0.00021917,2]
[400142368,1767149453268,-508.18612859,0.00021917,2]
[400142369,1767149453278,-374.47855982,0.00021917,2]
[400142370,1767149453287,-465.73088002,0.00021917,2]
[400142371,1767149453297,-151.60326203,0.00021917,2]
[400142372,1767149453307,-500.0,0.00021917,2]
[400142373,1767149453317,-366.50958034,0.00021917,2]
[400142374,1767149453326,-446.01185522,0.00021917,2]
[400142375,1767149453336,-301.93071658,0.00021917,2]
[400142376,1767149453346,-174.51831513,0.00021917,2]
[400142377,1767149453356,-617.18361714,0.00021917,2]
[400142378,1767149453366,-599.95501005,0.00021917,2]
[400142379,1767149453376,-235.40908776,0.00021917,2]
[400142380,1767149453386,-500.0,0.00021917,2]
[400142381,1767149453396,-500.0,0.00021917,2]
[400142382,1767149453406,-504.56539008,0.00021917,2]
[400142383,1767149453416,-521.40207309,0.00021917,2]
[400142384,1767149453426,-151.50769084,0.00021917,2]
[400142385,1767149453436,-174.1654428,0.00021917,2]
[400142386,1767149453447,-230.99618551,0.00021917,2]
[400142387,1767149453457,-384.58012515,0.00021917,2]
[400142388,1767149453467,-246.24202534,0.00021917,2]
[400142389,1767149453476,-245.87963468,0.00021917,2]
[400142390,1767149453488,-552.86099206,0.00021917,2]
[400142391,1767149453498,-362.71467359,0.00021917,2]
[400142392,1767149453507,-506.03871466,0.00021917,2]
[400142393,1767149453517,-178.389129,0.00021918,2]
[400142394,1767149453527,-150.0,0.00021918,2]
[400142395,1767149453537,-224.61,0.00022,2]
[400142396,1767149453547,-222.94,0.00022,7]
[400142397,1767149453558,-2000.0,0.00022024,7]
[400142398,1767149453567,-495.88815703,0.00022053,2]
[400142399,1767149453578,-10826.17,0.00022079,2]
[400142400,1767149453588,-1000.0,0.00022095,10]
[400142401,1767149453598,-791.0,0.00022095,10]
[400142402,1767149453608,-500.0,0.00022118,2]
[400142403,1767149453617,-500.0,0.00022191,2]
[400142404,1767149453628,-239.81147131,0.00022191,2]
[400142405,1767149453638,-202.50591584,0.00022191,2]
[400142406,1767149453648,-502.57958237,0.00022191,2]
[400142407,1767149453658,-504.13553141,0.00022191,2]
[400142408,1767149453668,-1003.43991265,0.00022191,2]
[400142409,1767149453678,-395.30558653,0.00022191,2]
[400142410,1767149453688,-500.0,0.00022191,2]
[400142411,1767149453698,-500.0,0.00022191,2]
[400142412,1767149453708,-952.37,0.00022191,2]
[400142413,1767149453717,-547.98099836,0.00022191,2]
[400142414,1767149453727,-168.10072634,0.00022191,2]
[400142415,1767149453737,-497.71228405,0.00022191,2]
[400142416,1767149453747,-500.0,0.00022191,2]
[400142417,1767149453757,-260.29725733,0.00022191,2]
[400142418,1767149453767,-296.14349355,0.00022191,2]
[400142419,1767149453776,-250.61072035,0.00022191,2]
[400142420,1767149453786,-170.16146691,0.00022191,2]
[400142421,1767149453795,-325.48007229,0.00022191,2]
[400142422,1767149453804,-500.0,0.00022191,2]
[400142423,1767149453814,-500.0,0.00022191,2]
[400142424,1767149453823,-500.0,0.00022191,2]
[400142425,1767149453833,-500.0,0.00022191,2]
[400142426,1767149453844,-500.0,0.00022191,2]
[400142427,1767149453854,-214.44487633,0.00022191,2]
[400142428,1767149453863,-160.0,0.00022285,3]
[400142429,1767149453873,-713.97283296,0.00022346,2]
[400142430,1767149453882,-500.0,0.00022465,2]
[400142431,1767149453891,-521.10831406,0.00022465,2]
[400142432,1767149453901,-228.80189883,0.00022465,2]
[400142433,1767149453911,-952.37,0.00022465,2]
[400142434,1767149453920,-500.0,0.00022465,2]
[400142435,1767149453931,-174.72449956,0.00022465,2]
[400142436,1767149453940,-500.0,0.00022465,2]
[400142437,1767149453951,-500.0,0.00022465,2]
[400142438,1767149453961,-310.58838668,0.00022465,2]
[400142439,1767149453971,-500.0,0.00022465,2]
[400142440,1767149453980,-300.0,0.00022466,2]
[400142441,1767149453990,-14171.13,0.000225,2]
[400142442,1767149453999,-375.44797495,0.00022616,12]
[400142443,1767149454009,-160.0,0.00022688,4]
[400142444,1767149454019,-500.0,0.00022739,2]
[400142445,1767149454029,-952.37,0.00022739,2]
[400142446,1767149454038,-500.0,0.00022739,2]
[400142447,1767149454048,-346.29272725,0.00022739,2]
[400142448,1767149454058,-500.0,0.00022739,2]
[400142449,1767149454068,-500.0,0.00022739,2]
[400142450,1767149454078,-165.41,0.000228,7]
[400142451,1767149454088,-2253.52896128,0.0002287,2]
[400142452,1767149454098,-488.094127,0.0002287,2]
[400142453,1767149454108,-488.094127,0.0002287,2]
[400142454,1767149454118,-488.094127,0.0002287,2]
[400142455,1767149454129,-488.094127,0.0002287,2]
[400142456,1767149454139,-740.38982778,0.00022894,2]
[400142457,1767149454149,-1304.0,0.000229,14]
[400142458,1767149454159,-185.64986707,0.00022938,7]
[400142459,1767149454170,-223.2,0.00022958,2]
[400142460,1767149454179,-61585.70195932,0.00023,2]
[400142461,1767149454200,-9239.59067387,0.00023,2]
[400142462,1767149464148,500.0,0.00012225,2]
[400142463,1767149464180,500.0,0.00012225,2]
[400142464,1767149464217,500.0,0.00012225,2]
[400142465,1767149464247,500.0,0.00012225,2]
[400142466,1767149464281,500.0,0.00012225,2]
[400142467,1767149464309,500.0,0.00012225,2]
[400142468,1767149464340,500.0,0.00012225,2]
[400142469,1767149464371,500.0,0.00012225,2]
[400142470,1767149464398,257.95019094,0.00012225,2]
[400142471,1767149464430,500.0,0.00012225,2]
[400142472,1767149464462,500.0,0.00012225,2]
[400142473,1767149464498,500.0,0.00012225,2]
[400142474,1767149464602,500.0,0.00012225,2]
[400142475,1767149464682,500.0,0.00012225,2]
[400142476,1767149466637,3242.05980906,0.00012127,2]
[400142477,1767149466663,10000.01,0.00012127,2]
[400142478,1767149466688,10000.01,0.00012127,2]
[400142479,1767149466712,10000.01,0.00012127,2]
[400142480,1767149466737,10000.01,0.00012127,2]
[400142481,1767149466761,10000.01,0.00012127,2]
[400142482,1767149466785,10000.01,0.00012127,2]
[400142483,1767149466812,10000.01,0.00012127,2]
[400142484,1767149466837,10000.01,0.00012127,2]
[400142487,1767149545322,-300.0,0.00012126,2]
[400142488,1767149551907,538.38052506,0.00012126,2]
[400142489,1767149553146,500.0,0.00012126,2]
[400142490,1767149553173,500.0,0.00012126,2]
[400142491,1767149553203,500.0,0.00012126,2]
[400142492,1767149553229,500.0,0.00012126,2]
[400142493,1767149553269,500.0,0.00012126,2]
[400142494,1767149553302,500.0,0.00012126,2]
[400142495,1767149553332,500.0,0.00012126,2]
[400142496,1767149553359,500.0,0.00012126,2]
[400142497,1767149553387,500.0,0.00012126,2]
[400142498,1767149553422,500.0,0.00012126,2]
[400142499,1767149553458,500.0,0.00012126,2]
[400142500,1767149553486,500.0,0.00012126,2]
[400142501,1767149553515,500.0,0.00012126,2]
[400142502,1767149553543,500.0,0.00012126,2]
[400142503,1767149553579,500.0,0.00012126,2]
[400142504,1767149553606,500.0,0.00012126,2]
[400142505,1767149553633,500.0,0.00012126,2]
[400142506,1767149553664,361.62947494,0.00012126,2]
[400142507,1767149553684,138.37052506,0.00012126,2]
[400142508,1767149553725,500.0,0.00012126,2]
[400142509,1767149553752,500.0,0.00012126,2]
[400142510,1767149553790,500.0,0.00012126,2]
[400142511,1767149553817,500.0,0.00012126,2]
[400142512,1767149553853,500.0,0.00012126,2]
[400142513,1767149553885,500.0,0.00012126,2]
[400142514,1767149553913,500.0,0.00012126,2]
[400142515,1767149553944,500.0,0.00012126,2]
[400142516,1767149553972,500.0,0.00012126,2]
[400142517,1767149554007,500.0,0.00012126,2]
[400142518,1767149554037,500.0,0.00012126,2]
[400142519,1767149554064,500.0,0.00012126,2]
[400142520,1767149554095,500.0,0.00012126,2]
[400142521,1767149554123,500.0,0.00012126,2]
[400142522,1767149554153,500.0,0.00012126,2]
[400142523,1767149554180,500.0,0.00012126,2]
[400142524,1767149554210,500.0,0.00012126,2]
[400142525,1767149554237,500.0,0.00012126,2]
[400142526,1767149554264,500.0,0.00012126,2]
[400142527,1767149554292,361.63947494,0.00012126,2]
[400142528,1767149554318,138.36052506,0.00012126,2]
[400142529,1767149554350,500.0,0.00012126,2]
[400142530,1767149554383,500.0,0.00012126,2]
[400142531,1767149554422,500.0,0.00012126,2]
[400142532,1767149554456,254.5232018,0.00012126,2]
[400142533,1767149554482,500.0,0.00012126,2]
[400142534,1767149554510,500.0,0.00012126,2]
[400142535,1767149554541,500.0,0.00012126,2]
[400142536,1767149554568,500.0,0.00012126,2]
[400142537,1767149554600,500.0,0.00012126,2]
[400142538,1767149554627,643.43950113,0.00012126,2]
[400142539,1767149554654,500.0,0.00012126,2]
[400142540,1767149554681,500.0,0.00012126,2]
[400142541,1767149554712,183.34938219,0.00012126,2]
[400142542,1767149554748,500.0,0.00012126,2]
[400142543,1767149554783,500.0,0.00012126,2]
[400142544,1767149554810,500.0,0.00012126,2]
[400142545,1767149554837,500.0,0.00012126,2]
[400142546,1767149554871,500.0,0.00012126,2]
[400142547,1767149555004,500.0,0.00012126,2]
[400142548,1767149555035,500.0,0.00012126,2]
[400142549,1767149555069,280.33738982,0.00012126,2]
[400142550,1767149555092,219.66261018,0.00012126,2]
[400142551,1767149555123,500.0,0.00012126,2]
[400142552,1767149555150,500.0,0.00012126,2]
[400142553,1767149555182,500.0,0.00012126,2]
[400142554,1767149555208,500.0,0.00012126,2]
[400142555,1767149555239,500.0,0.00012126,2]
[400142556,1767149555271,310.3950228,0.00012126,2]
[400142557,1767149555301,500.0,0.00012126,2]
[400142558,1767149555340,500.0,0.00012126,2]
[400142559,1767149555403,500.0,0.00012126,2]
[400142560,1767149555443,500.0,0.00012126,2]
[400142561,1767149555476,500.0,0.00012126,2]
[400142562,1767149555510,500.0,0.00012126,2]
[400142563,1767149555548,500.0,0.00012126,2]
[400142564,1767149555593,500.0,0.00012126,2]
[400142565,1767149555623,500.0,0.00012126,2]
[400142566,1767149555657,500.0,0.00012126,2]
[400142567,1767149555687,500.0,0.00012126,2]
[400142568,1767149555722,500.0,0.00012126,2]
[400142569,1767149555754,500.0,0.00012126,2]
[400142570,1767149555786,469.95236702,0.00012126,2]
[400142571,1767149555809,30.04763298,0.00012126,2]
[400142572,1767149555850,500.0,0.00012126,2]
[400142573,1767149555882,500.0,0.00012126,2]
[400142574,1767149555916,500.0,0.00012126,2]
[400142575,1767149555951,500.0,0.00012126,2]
[400142576,1767149555989,500.0,0.00012126,2]
[400142577,1767149556037,500.0,0.00012126,2]
[400142578,1767149564604,-9721.11103304,0.00012127,2]
[400142579,1767149566499,-10000.01,0.00012127,2]
[400142580,1767149566647,-10000.01,0.00012127,2]
[400142581,1767149566744,-10000.01,0.00012127,2]
[400142582,1767149566875,-10000.01,0.00012127,2]
[400142583,1767149566998,-10000.01,0.00012127,2]
[400142584,1767149567163,-10000.01,0.00012127,2]
[400142585,1767149567276,-10000.01,0.00012127,2]
[400142586,1767149584863,-300.0,0.00012125,2]
[400142587,1767149593488,1200.0,0.00012125,2]
[400142588,1767149594116,5000.0,0.00012125,2]
[400142589,1767149599947,-500.0,0.00012126,2]
[400142590,1767149599977,-500.0,0.00012126,2]
[400142591,1767149600010,-500.0,0.00012126,2]
[400142592,1767149600039,-500.0,0.00012126,2]
[400142593,1767149600068,-500.0,0.00012126,2]
[400142594,1767149600097,-500.0,0.00012126,2]
[400142595,1767149600127,-500.0,0.00012126,2]
[400142596,1767149600155,-500.0,0.00012126,2]
[400142597,1767149600184,-643.43950113,0.00012126,2]
[400142598,1767149600212,-213.13099774,0.00012126,2]
[400142599,1767149600315,-286.86900226,0.00012126,2]
[400142600,1767149600343,-500.0,0.00012126,2]
[400142601,1767149600371,-500.0,0.00012126,2]
[400142602,1767149600400,-500.0,0.00012126,2]
[400142603,1767149600428,-392.24776683,0.00012126,2]
[400142604,1767149600456,-500.0,0.00012126,2]
[400142605,1767149600485,-500.0,0.00012126,2]
[400142606,1767149600717,500.0,0.00012126,2]
[400142607,1767149600759,500.0,0.00012126,2]
[400142608,1767149600828,427.0348771,0.00012126,2]
[400142609,1767149600871,500.0,0.00012126,2]
[400142610,1767149600902,500.0,0.00012126,2]
[400142611,1767149600932,500.0,0.00012126,2]
[400142612,1767149600960,180.84489176,0.00012126,2]
[400142613,1767149600990,500.0,0.00012126,2]
[400142614,1767149601023,33.89669296,0.00012126,2]
[400142615,1767149601046,466.10330704,0.00012126,2]
[400142616,1767149601083,500.0,0.00012126,2]
[400142617,1767149601257,500.0,0.00012126,2]
[400142618,1767149615147,-255.39612838,0.00012126,2]
[400142619,1767149620573,500.0,0.00012126,2]
[400142620,1767149620601,500.0,0.00012126,2]
[400142621,1767149620630,500.0,0.00012126,2]
[400142622,1767149620659,500.0,0.00012126,2]
[400142623,1767149620687,500.0,0.00012126,2]
[400142624,1767149620715,500.0,0.00012126,2]
[400142625,1767149620747,500.0,0.00012126,2]
[400142626,1767149620775,578.34261691,0.00012126,2]
[400142627,1767149620803,500.0,0.00012126,2]
[400142628,1767149620873,500.0,0.00012126,2]
[400142629,1767149620946,500.0,0.00012126,2]
[400142630,1767149630781,-3400.66661649,0.00012127,2]
[400142631,1767149630816,-10000.01,0.00012127,2]
[400142632,1767149630830,-10000.01,0.00012127,2]
[400142633,1767149630902,-10000.01,0.00012127,2]
[400142634,1767149631007,-10000.01,0.00012127,2]
[400142635,1767149631132,-10000.01,0.00012127,2]
[400142636,1767149644617,312.5,0.0001,2]
[400142637,1767149647045,312.5,0.000102,2]
[400142638,1767149649559,312.5,0.000104,2]
[400142639,1767149651948,312.5,0.000106,2]
[400142640,1767149654323,312.5,0.000108,2]
[400142641,1767149656698,312.5,0.00011,2]
[400142642,1767149667824,500.0,0.00028767,120]
[400142643,1767149668705,5000.0,0.00012117,2]
[400142644,1767149691746,3125.01,0.00012117,2]
[400142645,1767149691769,1388.62925921,0.00012117,2]
[400142646,1767149761474,263.698,0.00012117,2]
[400142647,1767149821171,-375.79741506,0.00012126,2]
[400142648,1767149836575,-1200.0,0.00012126,2]
[400142649,1767149836604,-300.0,0.00012126,2]
[400142650,1767149844856,500.0,0.00012126,2]
[400142651,1767149844910,500.0,0.00012126,2]
[400142652,1767149844967,262.68825266,0.00012126,2]
[400142653,1767149852472,500.0,0.00012126,2]
[400142654,1767149852508,500.0,0.00012126,2]
[400142655,1767149852557,500.0,0.00012126,2]
[400142656,1767149852616,183.28658187,0.00012126,2]
[400142657,1767149854180,4054.03516547,0.00011854,2]
[400142658,1767149854204,10000.01,0.00011854,2]
[400142659,1767149854230,774.31116813,0.00011854,2]
[400142660,1767149865688,500.0,0.00012126,2]
[400142661,1767149865742,500.0,0.00012126,2]
[400142662,1767149865776,500.0,0.00012126,2]
[400142663,1767149865804,281.03950228,0.00012126,2]
[400142664,1767149867141,3520.91,0.00012126,2]
[400142665,1767149874082,376.86636754,0.00012126,2]
[400142666,1767149875768,5000.0,0.00012126,2]
[400142667,1767149882273,300.0,0.00012126,2]
[400142668,1767149892850,1200.0,0.00012126,2]
[400142669,1767149893775,207.35873939,0.00012025,2]
[400142670,1767149899232,2915.78489307,0.00012126,2]
[400142671,1767149899261,2084.21510693,0.00012126,2]
[400142672,1767149997313,173.2958616,0.00011216,2]
[400142679,1767150123338,5000.0,0.00011994,2]
[400142680,1767150139940,999.0,0.00011123,2]
[400142681,1767150146879,5000.0,0.00011874,2]
[400142688,1767150185543,1000.0,0.00028767,120]
[400142690,1767150312640,500.0,0.00028767,120]
[400142691,1767150365000,5000.0,0.00013,3]
[400142692,1767150388539,1190.40956267,0.00013,3]
[400142710,1767150450129,-250.28820581,0.00011944,2]
[400142711,1767150450150,-300.0,0.00011999,2]
[400142712,1767150450169,-4538.80181956,0.00012,2]
[400142713,1767150480264,181.56,9.99e-05,2]
[400142714,1767150480548,181.56,9.99e-05,2]
[400142715,1767150480832,181.54,9.99e-05,2]
[400142716,1767150498673,-300.0,0.00011999,2]
[400142717,1767150498694,-371.18334278,0.00011999,2]
[400142718,1767150500758,-531.82573339,0.00011999,2]
[400142719,1767150502678,-137.99092383,0.00011999,2]
[400142720,1767150502699,-187.23850627,0.00012,2]
[400142721,1767150504694,-513.90419635,0.00012,2]
[400142722,1767150506384,-544.06,0.00012,2]
[400142723,1767150508519,-419.61888068,0.00012,2]
[400142724,1767150510050,-205.80722223,0.00012,2]
[400142725,1767150511605,-231.69814697,0.00012,2]
[400142726,1767150513648,-503.11240054,0.00012,2]
[400142727,1767150515664,-218.71,0.00012,2]
[400142728,1767150523281,437.5053692,0.0001188,2]
[400142729,1767150526588,-222.83310953,0.00012,2]
[400142730,1767150526881,-1032.75573265,0.00012,2]
[400142731,1767150526905,-10000.01,0.00012,2]
[400142732,1767150526977,-10000.01,0.00012,2]
[400142733,1767150527093,-10000.01,0.00012,2]
[400142734,1767150528980,-1208.64775584,0.00012,2]
[400142735,1767150529004,-7582.71448832,0.00012,2]
[400142736,1767150532446,5000.0,0.00012,2]
[400142737,1767150541167,-589.0,0.00012005,2]
[400142738,1767150543766,-300.0,0.00012018,2]
[400142739,1767150543787,-22.01555826,0.00012018,2]
[400142740,1767150545228,-241.79089902,0.00012018,2]
[400142741,1767150545388,-4.31003392,0.00012018,2]
[400142742,1767150548061,-182.72180851,0.00012018,2]
[400142743,1767150548086,-98.56819149,0.00012018,2]
[400142744,1767150550090,-99.32508654,0.00012018,2]
[400142745,1767150550117,-56.37735166,0.00012019,2]
[400142746,1767150552364,-245.2824417,0.00012019,2]
[400142747,1767150552393,-111.6575583,0.00012019,2]
[400142748,1767150555509,5000.0,0.00012005,2]
[400142749,1767150556348,-0.01,0.00012019,2]
[400142750,1767150556461,-10000.01,0.00012019,2]
[400142751,1767150556565,-10000.01,0.00012019,2]
[400142752,1767150556667,-10000.01,0.00012019,2]
[400142753,1767150556775,-10000.01,0.00012019,2]
[400142754,1767150559104,-2540.376874,0.00012019,2]
[400142755,1767150566087,-10227.13558568,0.00012019,2]
[400142756,1767150578540,5000.0,0.00011879,2]
[400142757,1767150589977,-5000.01,0.00012019,2]
[400142758,1767150590221,-10000.01,0.00012019,2]
[400142759,1767150590338,-10000.01,0.00012019,2]
[400142760,1767150590453,-10000.01,0.00012019,2]
[400142761,1767150590560,-10000.01,0.00012019,2]
[400142762,1767150590678,-10000.01,0.00012019,2]
[400142763,1767150590794,-10000.01,0.00012019,2]
[400142764,1767150590918,-10000.01,0.00012019,2]
[400142765,1767150591047,-10000.01,0.00012019,2]
[400142766,1767150595973,-10000.01,0.00012019,2]
[400142767,1767150596098,-10000.01,0.00012019,2]
[400142768,1767150596218,-10000.01,0.00012019,2]
[400142769,1767150596331,-10000.01,0.00012019,2]
[400142770,1767150596429,-10000.01,0.00012019,2]
[400142771,1767150596551,-10000.01,0.00012019,2]
[400142772,1767150596657,-10000.01,0.00012019,2]
[400142773,1767150596779,-10000.01,0.00012019,2]
[400142774,1767150596874,-10000.01,0.00012019,2]
[400142810,1767150632603,-401.15789213,0.00011779,2]